fUSD/lending_fUSD_20240427
["ID","MTS","AMOUNT","RATE_DAILY","PERIOD"]
[323765286,1714257050689,-500.0,0.0002232,10]
[323765287,1714257050698,-500.0,0.0002232,10]
[323765288,1714257050707,-500.0,0.0002232,10]
[323765289,1714257050717,-500.0,0.0002232,10]
[323765290,1714257050726,-500.0,0.0002232,10]
[323765291,1714257050735,-500.0,0.0002232,10]
[323765292,1714257050744,-500.0,0.0002232,10]
[323765293,1714257050754,-500.0,0.0002232,10]
[323765294,1714257050763,-500.0,0.0002232,10]
[323765295,1714257050773,-500.0,0.0002232,10]
[323765296,1714257050782,-500.0,0.0002232,10]
[323765297,1714257050791,-500.0,0.0002232,10]
[323765298,1714257050800,-500.0,0.0002232,10]
[323765299,1714257050810,-500.0,0.0002232,10]
[323765300,1714257050821,-500.0,0.0002232,10]
[323765301,1714257050831,-500.0,0.0002232,10]
[323765302,1714257050840,-500.0,0.0002232,10]
[323765303,1714257050849,-500.0,0.0002232,10]
[323765304,1714257050858,-500.0,0.0002232,10]
[323765305,1714257050867,-500.0,0.0002232,10]
[323765306,1714257050876,-500.0,0.0002232,10]
[323765307,1714257050885,-500.0,0.0002232,10]
[323765308,1714257050894,-500.0,0.0002232,10]
[323765309,1714257050903,-235.0,0.0002232,10]
[323765310,1714257050912,-500.0,0.0002232,10]
[323765311,1714257050922,-500.0,0.0002232,10]
[323765312,1714257050931,-500.0,0.0002232,10]
[323765313,1714257050940,-500.0,0.0002232,10]
[323765314,1714257050949,-500.0,0.0002232,10]
[323765315,1714257050959,-500.0,0.0002232,10]
[323765316,1714257050968,-500.0,0.0002232,10]
[323765317,1714257050977,-500.0,0.0002232,10]
[323765318,1714257050986,-500.0,0.0002232,10]
[323765319,1714257050996,-500.0,0.0002232,10]
[323765320,1714257051005,-500.0,0.0002232,10]
[323765321,1714257051014,-500.0,0.0002232,10]
[323765322,1714257051023,-500.0,0.0002232,10]
[323765323,1714257051033,-500.0,0.0002232,10]
[323765324,1714257051043,-500.0,0.0002232,10]
[323765325,1714257051052,-500.0,0.0002232,10]
[323765326,1714257051061,-160.43,0.00022384,2]
[323765327,1714257051071,-150.39209227,0.000224,2]
[323765328,1714257051081,-2785.57,0.000225,2]
[323765329,1714257051090,-2395.74,0.000225,2]
[323765330,1714257051100,-2656.27,0.000225,2]
[323765331,1714257051109,-742.430958,0.000225,10]
[323765332,1714257051118,-150.0,0.000225,3]
[323765333,1714257051127,-90043.41635457,0.00022552,2]
[323765334,1714257051136,-14451.39420955,0.00022569,2]
[323765335,1714257051146,-706.0,0.00022575,2]
[323765336,1714257051155,-2927.2044767,0.00022652,2]
[323765337,1714257051165,-153.81143221,0.00022666,2]
[323765338,1714257051174,-151.0,0.0002274,7]
[323765339,1714257051184,-151.0,0.0002274,7]
[323765340,1714257051193,-153.81143221,0.00022752,2]
[323765341,1714257051202,-535.02688076,0.00022839,2]
[323765342,1714257051211,-158.93910973,0.00022907,2]
[323765343,1714257051220,-1013.82,0.0002296,2]
[323765344,1714257051230,-3806.35977895,0.00023,3]
[323765373,1714258232588,-155.0,0.00010897,2]
[323765374,1714258232597,-533.3453203,0.00010897,2]
[323765375,1714258232608,-155.0,0.00010898,2]
[323765376,1714258232619,-262.39512335,0.00010899,2]
[323765377,1714258232629,-155.0,0.000109,2]
[323765378,1714258232639,-1242.50224029,0.00011048,2]
[323765379,1714258232648,-156.28,0.00011058,2]
[323765380,1714258232657,-1053.32,0.00011349,2]
[323765381,1714258232667,-258.22755606,0.00012109,2]
[323765382,1714258232679,-363.6,0.00012109,2]
[323765383,1714258232690,-13436.9519048,0.00012109,2]
[323765384,1714258232706,-4386.35969042,0.00012109,2]
[323765385,1714258232718,-1550.17130281,0.00012109,2]
[323765386,1714258232741,-6900.0,0.00012109,2]
[323765387,1714258232753,-5000.0,0.00012109,2]
[323765388,1714258232765,-1255.57432,0.00012109,2]
[323765389,1714258232798,-1030.80826547,0.00012109,2]
[323765390,1714258232809,-325.09234905,0.00012109,2]
[323765391,1714258232822,-763.74377411,0.00012109,2]
[323765392,1714258233018,-150.0,0.0001211,2]
[323765393,1714258233028,-154.13110169,0.00012223,2]
[323765394,1714258233040,-1454.77506848,0.00012226,2]
[323765395,1714258233052,-1571.02033152,0.00012226,2]
[323765397,1714258233062,-317.01746459,0.00012326,2]
[323765399,1714258233073,-12188.43614177,0.00012328,2]
[323765401,1714258233085,-15221.15385823,0.00012328,2]
[323765403,1714258233095,-499.99,0.00012328,2]
[323765405,1714258233105,-528.0,0.00012328,2]
[323765407,1714258233115,-154.13110157,0.00012649,2]
[323765409,1714258233124,-150.99,0.00012649,2]
[323765411,1714258233134,-2000.0,0.00013,2]
[323765413,1714258233143,-417.90886388,0.00013,2]
[323765415,1714258233152,-528.0,0.00013013,2]
[323765417,1714258233162,-154.13110157,0.00013076,2]
[323765419,1714258233171,-1181.71,0.00013138,2]
[323765420,1714258233182,-500.0,0.0001316,2]
[323765423,1714258233193,-10000.0,0.00013492,2]
[323765424,1714258233203,-154.13110157,0.00013502,2]
[323765425,1714258233213,-155.22,0.00013529,10]
[323765426,1714258233223,-150.0,0.00013559,2]
[323765427,1714258233234,-301.73,0.00013561,2]
[323765428,1714258233244,-1053.32,0.00013612,2]
[323765429,1714258233253,-159.83,0.00013659,2]
[323765430,1714258233263,-528.0,0.00013698,2]
[323765431,1714258233274,-1000.0,0.00013699,2]
[323765432,1714258233283,-2751.0,0.00013727,2]
[323765433,1714258233294,-191.49,0.00013755,2]
[323765434,1714258233304,-154.13110157,0.00013928,2]
[323765435,1714258233313,-23890.0,0.00013951,2]
[323765436,1714258233323,-250.0,0.00013977,2]
[323765437,1714258233333,-2000.0,0.00014,2]
[323765438,1714258233343,-610.0,0.00014093,2]
[323765439,1714258233353,-909.0,0.00014093,2]
[323765440,1714258233364,-154.13110157,0.00014355,2]
[323765441,1714258233374,-155.36852506,0.00014372,2]
[323765442,1714258233383,-150.85,0.00014372,2]
[323765443,1714258233393,-4845.33,0.00014372,2]
[323765444,1714258233402,-150.85,0.00014372,2]
[323765445,1714258233412,-4845.33,0.00014372,2]
[323765446,1714258233422,-150.85,0.00014372,2]
[323765447,1714258233432,-4845.33,0.00014372,2]
[323765448,1714258233442,-4845.33,0.00014372,2]
[323765449,1714258233452,-4845.33,0.00014372,2]
[323765450,1714258233461,-576.79,0.00014372,3]
[323765451,1714258233471,-288.39,0.00014372,3]
[323765452,1714258233481,-865.21,0.00014372,3]
[323765453,1714258233492,-150.85,0.00014373,2]
[323765454,1714258233504,-499662.59699698,0.00014382,2]
[323765455,1714258233517,-180327.02480838,0.00014382,2]
[323765456,1714258233534,-1400.0,0.00014382,2]
[323765457,1714258233566,-256.4326,0.00014382,2]
[323765458,1714258233592,-339.7200004,0.00014382,2]
[323765461,1714258238467,-627.10341849,0.00014382,2]
[323765462,1714258238479,-311.75649,0.00014382,2]
[323765463,1714258238500,-305.29415922,0.00014382,2]
[323765464,1714258238511,-2009.55480909,0.00014382,2]
[323765465,1714258238522,-647.86,0.00014382,2]
[323765466,1714258238565,-366.83056436,0.00014382,2]
[323765467,1714258238574,-19071.909,0.00014383,2]
[323765468,1714258238583,-528.0,0.00014383,2]
[323765469,1714258238592,-200.0,0.00014667,2]
[323765470,1714258238602,-250.0,0.00014733,2]
[323765471,1714258238612,-154.13110157,0.00014781,2]
[323765472,1714258238622,-800.0,0.00014877,2]
[323765473,1714258238631,-6706.08501999,0.000149,2]
[323765474,1714258238641,-1345.0,0.00015,2]
[323765475,1714258238650,-2000.0,0.00015,2]
[323765476,1714258238659,-10154.0,0.00015,2]
[323765477,1714258238669,-1007.32,0.00015,2]
[323765478,1714258238679,-1185.29233321,0.00015,2]
[323765479,1714258238688,-200.0,0.00015,2]
[323765480,1714258238700,-316.5,0.00015,2]
[323765481,1714258238709,-155.0,0.00015,2]
[323765482,1714258238719,-517.0,0.00015068,2]
[323765483,1714258238728,-300.0,0.00015068,2]
[323765484,1714258238737,-800.0,0.00015096,2]
[323765485,1714258238747,-500.0,0.00015119,2]
[323765486,1714258238756,-800.0,0.00015178,2]
[323765487,1714258238765,-154.13110157,0.00015208,2]
[323765488,1714258238775,-301.73,0.00015256,2]
[323765489,1714258238785,-800.0,0.0001526,2]
[323765490,1714258238797,-301.73,0.00015294,2]
[323765491,1714258238806,-800.0,0.00015315,2]
[323765492,1714258238816,-800.0,0.00015342,2]
[323765493,1714258238825,-800.0,0.0001537,2]
[323765494,1714258238834,-800.0,0.0001537,2]
[323765496,1714258238844,-177.66,0.00015377,2]
[323765498,1714258238852,-871.32,0.00015388,3]
[323765499,1714258238862,-5949.56,0.00015399,2]
[323765500,1714258238872,-800.0,0.00015452,2]
[323765501,1714258238882,-155.0,0.000155,2]
[323765502,1714258238890,-150.0,0.000155,2]
[323765503,1714258238900,-800.0,0.00015616,2]
[323765504,1714258238909,-154.13110157,0.00015634,2]
[323765505,1714258238919,-1153.58,0.00015742,3]
[323765506,1714258238928,-576.78,0.00015742,3]
[323765507,1714258238937,-517.0,0.00015753,2]
[323765508,1714258238946,-356.68458722,0.00015873,2]
[323765509,1714258238956,-1053.32,0.00015876,2]
[323765510,1714258238966,-1181.71,0.00015877,2]
[323765511,1714258238976,-800.0,0.00015973,2]
[323765512,1714258238985,-1007.32,0.00015975,2]
[323765513,1714258238994,-2000.0,0.00016,2]
[323765514,1714258239003,-150.0,0.00016,2]
[323765515,1714258239012,-154.13110157,0.0001606,2]
[323765516,1714258239021,-150.85,0.00016081,2]
[323765517,1714258239030,-7500.0,0.00016091,2]
[323765518,1714258239040,-800.0,0.00016192,2]
[323765519,1714258239049,-624.6,0.0001621,2]
[323765520,1714258239058,-167.0,0.00016257,2]
[323765522,1714258239068,-517.0,0.00016438,2]
[323765524,1714258239077,-300.0,0.00016438,2]
[323765526,1714258239086,-749.63590295,0.00016446,2]
[323765529,1714258239096,-154.13110157,0.00016487,2]
[323765531,1714258239105,-2349.62860644,0.000165,2]
[323765533,1714258239114,-150.0,0.000165,2]
[323765534,1714258239124,-800.0,0.00016658,2]
[323765537,1714258239134,-800.0,0.00016658,2]
[323765539,1714258239142,-800.0,0.00016685,2]
[323765540,1714258239156,-178.66,0.00016712,2]
[323765543,1714258239165,-167.0,0.00016794,2]
[323765545,1714258239177,-154.13110157,0.00016913,2]
[323765547,1714258239189,-1007.32,0.0001695,2]
[323765549,1714258239197,-301.73,0.00016951,2]
[323765551,1714258239206,-191.49563012,0.00016999,2]
[323765553,1714258239214,-2000.0,0.00017,2]
[323765555,1714258239224,-150.0,0.00017,2]
[323765557,1714258239233,-591.0,0.00017005,2]
[323765558,1714258239242,-517.0,0.00017123,2]
[323765560,1714258239251,-591.0,0.0001718,2]
[323765561,1714258239260,-301.73,0.00017205,2]
[323765562,1714258239269,-2541.97377616,0.0001725,2]
[323765563,1714258239278,-356.68458717,0.00017304,2]
[323765564,1714258239287,-167.0,0.00017331,2]
[323765565,1714258239298,-154.13110157,0.00017339,2]
[323765566,1714258239307,-591.0,0.00017356,2]
[323765567,1714258239317,-150.0,0.000175,2]
[323765568,1714258239328,-1022.06049577,0.00017531,2]
[323765569,1714258239338,-591.0,0.00017531,2]
[323765570,1714258239347,-1372.15143175,0.00017531,2]
[323765571,1714258239358,-200.0,0.00017668,2]
[323765572,1714258239367,-160.02659243,0.00017702,2]
[323765573,1714258239378,-591.0,0.00017706,2]
[323765574,1714258239388,-1092.91,0.00017728,2]
[323765575,1714258239397,-154.13110157,0.00017766,2]
[323765576,1714258239406,-155.2670859,0.00017768,2]
[323765577,1714258239416,-200.0,0.0001778,2]
[323765578,1714258239426,-800.0,0.00017781,2]
[323765579,1714258239436,-483.0,0.000178,2]
[323765580,1714258239445,-517.0,0.00017808,2]
[323765581,1714258239454,-167.0,0.00017867,2]
[323765582,1714258239465,-2890.27884191,0.0001788,2]
[323765583,1714258239475,-2890.27884191,0.0001788,2]
[323765584,1714258239483,-2890.27884191,0.0001788,2]
[323765585,1714258239492,-591.0,0.00017882,2]
[323765586,1714258239502,-1007.32,0.00017925,2]
[323765587,1714258239511,-2000.0,0.00018,2]
[323765588,1714258239520,-3071.74410546,0.00018,2]
[323765589,1714258239529,-1000.0,0.00018,2]
[323765590,1714258239538,-150.0,0.00018,2]
[323765591,1714258239548,-591.0,0.00018057,2]
[323765592,1714258239557,-800.0,0.00018082,2]
[323765593,1714258239567,-1053.32,0.0001814,2]
[323765594,1714258239576,-150.85,0.00018161,2]
[323765595,1714258239585,-155.04223178,0.0001817,2]
[323765596,1714258239594,-409.12808028,0.0001817,2]
[323765597,1714258239603,-11413.58358067,0.00018171,2]
[323765598,1714258239613,-19518.60027249,0.00018171,2]
[323765599,1714258239622,-150.00799357,0.00018175,2]
[323765600,1714258239632,-218.22894187,0.00018175,2]
[323765601,1714258239641,-3813.50140624,0.00018175,2]
[323765602,1714258239650,-330.24547727,0.00018175,2]
[323765603,1714258239659,-154.13110157,0.00018192,2]
[323765604,1714258239669,-150.85,0.00018265,2]
[323765605,1714258239678,-150.85,0.00018265,2]
[323765606,1714258239687,-150.85,0.00018265,2]
[323765607,1714258239697,-150.85,0.00018265,2]
[323765608,1714258239707,-150.85,0.00018265,2]
[323765609,1714258239716,-150.85,0.00018265,2]
[323765610,1714258239725,-2360.06922033,0.00018273,2]
[323765611,1714258239734,-1238.61520607,0.00018273,2]
[323765612,1714258239753,-1549.03612692,0.00018273,2]
[323765613,1714258239762,-155.59502717,0.00018274,2]
[323765614,1714258239771,-786.99155585,0.00018274,2]
[323765615,1714258239781,-3548.58620293,0.00018274,2]
[323765616,1714258239790,-4784.36817694,0.00018275,2]
[323765617,1714258239805,-240215.63182306,0.00018275,2]
[323765618,1714258239814,-2398.2696,0.00018275,2]
[323765619,1714258239823,-21143.3241,0.00018275,2]
[323765620,1714258239832,-100000.0,0.00018275,2]
[323765621,1714258239842,-213.0,0.00018275,2]
[323765622,1714258239851,-168.52611108,0.00018292,2]
[323765623,1714258239860,-800.0,0.00018301,2]
[323765624,1714258239870,-800.0,0.00018356,2]
[323765625,1714258239880,-150.85,0.00018363,2]
[323765626,1714258239889,-209.85536267,0.00018373,2]
[323765627,1714258239899,-247.6312833,0.00018373,2]
[323765628,1714258239908,-289.10427307,0.00018373,2]
[323765629,1714258239917,-1667.16113497,0.00018373,2]
[323765630,1714258239926,-214.02042905,0.00018373,2]
[323765631,1714258239935,-5544.53670484,0.00018373,2]
[323765632,1714258239944,-155.0,0.00018373,2]
[323765633,1714258239954,-305.25449563,0.00018374,2]
[323765634,1714258239964,-453.61585099,0.00018374,2]
[323765635,1714258239973,-150.0,0.000184,2]
[323765636,1714258239982,-167.0,0.00018404,2]
[323765637,1714258239991,-363.32156126,0.00018425,2]
[323765638,1714258240001,-155.76651167,0.00018425,2]
[323765639,1714258240011,-279.14054832,0.00018425,2]
[323765640,1714258240020,-483.30142374,0.00018426,2]
[323765641,1714258240029,-155.0,0.00018426,2]
[323765642,1714258240038,-207.08240678,0.00018427,2]
[323765643,1714258240047,-252.82921719,0.00018428,2]
[323765644,1714258240056,-517.0,0.00018493,2]
[323765645,1714258240066,-150.0,0.000185,2]
[323765646,1714258240075,-1556.64900481,0.00018507,2]
[323765647,1714258240085,-3471.54256328,0.00018545,2]
[323765648,1714258240095,-1181.71,0.00018617,2]
[323765649,1714258240105,-153.80735587,0.0001863,2]
[323765650,1714258240114,-301.73,0.00018646,2]
[323765651,1714258240124,-356.68458717,0.00018734,2]
[323765652,1714258240133,-3471.54256328,0.00018752,2]
[323765653,1714258240143,-1556.64900481,0.00018829,2]
[323765654,1714258240152,-330.24547726,0.00018856,2]
[323765655,1714258240162,-1007.32,0.000189,2]
[323765656,1714258240171,-150.0,0.000189,2]
[323765657,1714258240181,-167.0,0.00018941,2]
[323765659,1714258240191,-200.0,0.00018945,2]
[323765661,1714258240200,-411.08158473,0.00019,2]
[323765663,1714258240210,-2000.0,0.00019,2]
[323765665,1714258240218,-150.0,0.00019,2]
[323765667,1714258240228,-1556.64900481,0.00019079,2]
[323765668,1714258240237,-301.73,0.00019117,2]
[323765669,1714258240246,-3471.54256328,0.00019134,2]
[323765670,1714258240256,-408.61554877,0.00019178,2]
[323765671,1714258240265,-517.0,0.00019178,2]
[323765672,1714258240275,-200.0,0.00019178,2]
[323765673,1714258240284,-4000.0,0.00019178,2]
[323765674,1714258240293,-154.00444408,0.00019197,2]
[323765675,1714258240302,-177.66,0.00019222,2]
[323765676,1714258240313,-153.85276899,0.00019279,2]
[323765677,1714258240323,-3471.54256328,0.00019361,2]
[323765678,1714258240333,-150.0,0.000194,2]
[323765679,1714258240342,-1556.64900481,0.00019435,2]
[323765680,1714258240351,-153.99666678,0.00019437,2]
[323765681,1714258240361,-150.0,0.000195,2]
[323765682,1714258240508,-330.24547726,0.00019538,2]
[323765683,1714258240518,-3813.50140614,0.00019551,2]
[323765684,1714258240528,-1556.64900481,0.00019577,2]
[323765685,1714258240537,-3471.54256328,0.00019684,2]
[323765686,1714258240546,-3471.54256328,0.00019739,2]
[323765687,1714258240555,-154.20982792,0.00019793,2]
[323765688,1714258240565,-517.0,0.00019863,2]
[323765689,1714258240575,-150.85,0.00019865,2]
[323765690,1714258240584,-1007.32,0.00019875,2]
[323765691,1714258240594,-331.52924021,0.000199,2]
[323765692,1714258240603,-331.52923942,0.000199,2]
[323765693,1714258240612,-331.52923942,0.000199,2]
[323765694,1714258240623,-331.52923942,0.000199,2]
[323765695,1714258240632,-331.52923942,0.000199,2]
[323765696,1714258240641,-331.52923942,0.000199,2]
[323765697,1714258240650,-331.52923942,0.000199,2]
[323765698,1714258240659,-331.52923942,0.000199,2]
[323765699,1714258240668,-150.0,0.000199,2]
[323765700,1714258240678,-229.7670018,0.000199,2]
[323765701,1714258240687,-331.52923942,0.00019948,2]
[323765702,1714258240696,-1556.64900481,0.00019982,2]
[323765703,1714258240706,-150.85,0.0001999,2]
[323765704,1714258240715,-150.85,0.0001999,2]
[323765705,1714258240725,-357.33032765,0.0002,2]
[323765706,1714258240734,-155.0,0.0002,2]
[323765707,1714258240743,-10896.92091926,0.0002,5]
[323765708,1714258240752,-1767.35506695,0.0002,2]
[323765709,1714258240761,-5172.02201971,0.0002,2]
[323765710,1714258240770,-105983.34041165,0.0002,2]
[323765711,1714258240779,-195.51084524,0.0002,2]
[323765712,1714258240789,-1650.45142225,0.0002,2]
[323765713,1714258240803,-6222.7192671,0.0002,2]
[323765714,1714258240813,-173.04210069,0.0002,2]
[323765715,1714258240822,-1258.06282669,0.0002,2]
[323765716,1714258240831,-1593.76,0.0002,2]
[323765717,1714258240842,-150.0,0.0002,2]
[323765719,1714258240851,-188.0,0.0002,2]
[323765721,1714258240860,-188.0,0.0002,2]
[323765722,1714258240870,-312.3,0.0002,2]
[323765723,1714258240880,-150.0,0.0002,2]
[323765724,1714258240889,-356.68458717,0.00020165,2]
[323765725,1714258240899,-331.52923942,0.0002017,2]
[323765726,1714258240908,-1556.64900481,0.00020211,2]
[323765727,1714258240917,-3471.54256328,0.00020217,2]
[323765728,1714258240933,-330.24547726,0.00020219,2]
[323765729,1714258240943,-200.0,0.00020222,2]
[323765730,1714258240954,-1556.64900481,0.000203,2]
[323765731,1714258240964,-301.73,0.00020341,2]
[323765732,1714258240973,-155.22,0.00020379,10]
[323765733,1714258240984,-331.52923942,0.00020391,2]
[323765734,1714258240993,-150.0,0.000204,2]
[323765735,1714258241003,-1053.32,0.00020404,2]
[323765736,1714258241012,-150.00799354,0.00020417,2]
[323765737,1714258241023,-3471.54256328,0.00020442,2]
[323765738,1714258241034,-150.0,0.000205,2]
[323765739,1714258241044,-517.0,0.00020548,2]
[323765740,1714258241054,-331.52923942,0.00020613,2]
[323765741,1714258241064,-1556.64900481,0.00020701,2]
[323765742,1714258241074,-3471.54256328,0.00020768,2]
[323765743,1714258241083,-331.52923942,0.00020835,2]
[323765744,1714258241093,-3471.54256328,0.00020843,2]
[323765745,1714258241102,-1007.32,0.0002085,2]
[323765746,1714258241112,-150.39209228,0.00020862,2]
[323765747,1714258241123,-150.85,0.0002089,2]
[323765748,1714258241133,-330.24547726,0.000209,2]
[323765749,1714258241142,-150.0,0.000209,2]
[323765750,1714258241151,-28019.44602038,0.000209,2]
[323765751,1714258241160,-199.05729577,0.000209,2]
[323765752,1714258241170,-3813.50140614,0.00020927,2]
[323765753,1714258241179,-1556.64900481,0.00020937,2]
[323765754,1714258241189,-155.36852506,0.0002099,2]
[323765755,1714258241199,-150.85,0.0002099,2]
[323765756,1714258241208,-150.85,0.0002099,2]
[323765757,1714258241217,-150.85,0.0002099,2]
[323765758,1714258241227,-150.85,0.0002099,2]
[323765759,1714258241237,-150.85,0.0002099,2]
[323765760,1714258241246,-150.85,0.0002099,2]
[323765761,1714258241258,-150.85,0.0002099,2]
[323765762,1714258241268,-150.85,0.0002099,2]
[323765763,1714258241277,-150.85,0.0002099,2]
[323765764,1714258241286,-150.85,0.0002099,2]
[323765765,1714258241295,-150.85,0.0002099,2]
[323765766,1714258241304,-150.85,0.0002099,2]
[323765767,1714258241313,-150.85,0.0002099,2]
[323765768,1714258241323,-150.85,0.0002099,2]
[323765769,1714258241332,-150.85,0.0002099,2]
[323765770,1714258241341,-150.85,0.0002099,2]
[323765771,1714258241350,-150.85,0.0002099,2]
[323765772,1714258241359,-150.85,0.0002099,2]
[323765773,1714258241368,-150.85,0.0002099,2]
[323765774,1714258241379,-150.85,0.0002099,2]
[323765775,1714258241388,-150.85,0.0002099,2]
[323765776,1714258241396,-150.85,0.0002099,2]
[323765777,1714258241406,-150.85,0.0002099,2]
[323765778,1714258241415,-150.85,0.0002099,2]
[323765779,1714258241425,-150.85,0.0002099,2]
[323765780,1714258241434,-150.85,0.0002099,2]
[323765781,1714258241443,-150.85,0.0002099,2]
[323765782,1714258241453,-150.85,0.0002099,2]
[323765783,1714258241463,-150.85,0.0002099,2]
[323765784,1714258241472,-150.85,0.0002099,2]
[323765785,1714258241482,-150.85,0.0002099,2]
[323765786,1714258241493,-150.85,0.0002099,2]
[323765787,1714258241503,-150.85,0.0002099,2]
[323765788,1714258241515,-150.85,0.0002099,2]
[323765789,1714258241524,-150.85,0.0002099,2]
[323765790,1714258241533,-150.85,0.0002099,2]
[323765791,1714258241543,-150.85,0.0002099,2]
[323765792,1714258241552,-150.85,0.0002099,2]
[323765793,1714258241561,-150.85,0.0002099,2]
[323765794,1714258241570,-150.85,0.0002099,2]
[323765795,1714258241579,-150.85,0.0002099,2]
[323765796,1714258241588,-150.85,0.0002099,2]
[323765797,1714258241597,-150.85,0.0002099,2]
[323765798,1714258241606,-150.85,0.0002099,2]
[323765799,1714258241615,-150.85,0.0002099,2]
[323765800,1714258241627,-150.85,0.0002099,2]
[323765801,1714258241636,-150.85,0.0002099,2]
[323765802,1714258241645,-150.85,0.0002099,2]
[323765803,1714258241654,-150.85,0.0002099,2]
[323765804,1714258241664,-150.85,0.0002099,2]
[323765805,1714258241673,-150.85,0.0002099,2]
[323765806,1714258241682,-150.85,0.0002099,2]
[323765807,1714258241691,-150.85,0.0002099,2]
[323765808,1714258241700,-150.85,0.0002099,2]
[323765809,1714258241709,-150.85,0.0002099,2]
[323765810,1714258241718,-201468.65797992,0.00020999,2]
[323765811,1714258241732,-1262299.15503326,0.00020999,2]
[323765812,1714258241742,-66788.10179443,0.00020999,2]
[323765813,1714258241754,-103231.22633079,0.00020999,2]
[323765814,1714258241774,-150.85,0.0002099,2]
[323765815,1714258241783,-287.76202703,0.00020999,2]
[323765816,1714258241795,-15847.0988187,0.00020999,2]
[323765817,1714258241828,-150.85,0.0002099,2]
[323765818,1714258241843,-1160667.07297592,0.00020999,2]
[323765819,1714258241854,-500000.0,0.00021,2]
[323765820,1714258241864,-1374.11660795,0.00021,2]
[323765821,1714258241874,-1671.35,0.00021,2]
[323765822,1714258241886,-1437.45,0.00021,2]
[323765823,1714258241895,-150.0,0.00021,2]
[323765824,1714258241905,-150.0,0.00021,2]
[323765825,1714258241915,-301.73,0.00021029,2]
[323765826,1714258241926,-331.52923942,0.00021056,2]
[323765827,1714258241936,-3471.54256328,0.00021166,2]
[323765828,1714258241946,-1556.64900481,0.00021184,2]
[323765829,1714258241958,-522.0,0.00021232,2]
[323765830,1714258241966,-331.52923942,0.00021278,2]
[323765831,1714258241975,-150.0,0.000214,3]
[323765832,1714258241986,-200.0,0.00021499,2]
[323765833,1714258241995,-331.52923942,0.00021499,2]
[323765834,1714258242004,-1593.76,0.000215,2]
[323765835,1714258242015,-150.0,0.000215,3]
[323765836,1714258242024,-356.68458717,0.00021595,2]
[323765837,1714258242033,-3471.54256328,0.00021612,2]
[323765838,1714258242042,-1556.64900481,0.00021637,2]
[323765839,1714258242051,-331.52923942,0.00021721,2]
[323765840,1714258242060,-1007.32,0.00021825,2]
[323765841,1714258242070,-1556.64900481,0.00021835,2]
[323765842,1714258242079,-155.0,0.0002185,2]
[323765843,1714258242089,-3471.54256328,0.00021865,2]
[323765844,1714258242098,-12963.03969405,0.000219,2]
[323765845,1714258242107,-150.0,0.000219,3]
[323765846,1714258242116,-250.0,0.00021918,2]
[323765847,1714258242128,-2000.0,0.00021918,2]
[323765848,1714258242137,-340.28,0.00021918,2]
[323765849,1714258242146,-500.0,0.00021918,2]
[323765850,1714258242155,-500.0,0.00021918,2]
[323765851,1714258242165,-500.0,0.00021918,2]
[323765852,1714258242175,-500.0,0.00021918,2]
[323765853,1714258242184,-500.0,0.00021918,2]
[323765854,1714258242193,-500.0,0.00021918,2]
[323765855,1714258242203,-150.0,0.00021918,2]
[323765856,1714258242213,-151.0,0.00021918,2]
[323765857,1714258242222,-150.0,0.00021918,2]
[323765858,1714258242231,-150.0,0.00021918,2]